[Event "Titled Tuesday Blitz January 25 2022"]
[White "Vlassov, Nikolai"]
[Black "Stepanencu, Nicodim-Cosmin"]
[WhiteFideId "4103360"]
[BlackFideId "1256220"]
[WhiteElo "2407"]
[BlackElo "1809"]
[Result "1-0"]
[Round "04"]
[TimeControl "180+1"]
[Date "2022.01.26"]
[WhiteClock "0:00:30"]
[BlackClock "0:00:01"]

1. e4 {[%clk 0:02:55]}  c5 {[%clk 0:02:58]} 2. c3 {[%clk 0:02:55]}  Nf6 {[%clk 0:02:58]} 3. e5 {[%clk 0:02:55]}  Nd5 {[%clk 0:02:58]} 4. d4 {[%clk 0:02:55]}  cxd4 {[%clk 0:02:59]} 5. cxd4 {[%clk 0:02:55]}  d6 {[%clk 0:02:59]} 6. Bc4 {[%clk 0:02:54]}  Nb6 {[%clk 0:02:57]} 7. Bb3 {[%clk 0:02:54]}  dxe5 {[%clk 0:02:56]} 8. Qh5 {[%clk 0:02:54]}  e6 {[%clk 0:02:52]} 9. dxe5 {[%clk 0:02:53]}  Nc6 {[%clk 0:02:45]} 10. Nc3 {[%clk 0:02:53]}  g6 {[%clk 0:02:41]} 11. Qg5 {[%clk 0:02:53]}  Qxg5 {[%clk 0:02:21]} 12. Bxg5 {[%clk 0:02:52]}  Bg7 {[%clk 0:02:22]} 13. f4 {[%clk 0:02:51]}  h6 {[%clk 0:02:22]} 14. Bf6 {[%clk 0:02:44]}  Bxf6 {[%clk 0:02:21]} 15. exf6 {[%clk 0:02:45]}  O-O {[%clk 0:02:18]} 16. Nf3 {[%clk 0:02:44]}  e5 {[%clk 0:02:01]} 17. Nxe5 {[%clk 0:02:31]}  Nxe5 {[%clk 0:01:59]} 18. fxe5 {[%clk 0:02:31]}  Re8 {[%clk 0:01:59]} 19. O-O-O {[%clk 0:02:31]}  Bg4 {[%clk 0:01:53]} 20. Rd4 {[%clk 0:02:25]}  Bf5 {[%clk 0:01:47]} 21. Re1 {[%clk 0:02:19]}  Rac8 {[%clk 0:01:43]} 22. Kd2 {[%clk 0:01:51]}  Rc5 {[%clk 0:01:08]} 23. Bd5 {[%clk 0:01:33]}  Nxd5 {[%clk 0:01:03]} 24. Nxd5 {[%clk 0:01:33]}  Rc2+ {[%clk 0:00:52]} 25. Kd1 {[%clk 0:01:33]}  Rxb2 {[%clk 0:00:51]} 26. Ne7+ {[%clk 0:01:33]}  Kh7 {[%clk 0:00:49]} 27. Nxf5 {[%clk 0:01:31]}  gxf5 {[%clk 0:00:50]} 28. Rd7 {[%clk 0:01:26]}  Kg6 {[%clk 0:00:31]} 29. Re3 {[%clk 0:01:18]}  Rxg2 {[%clk 0:00:28]} 30. Rxb7 {[%clk 0:01:12]}  f4 {[%clk 0:00:28]} 31. Re4 {[%clk 0:01:06]}  Kf5 {[%clk 0:00:26]} 32. Rbb4 {[%clk 0:01:05]}  Rxe5 {[%clk 0:00:26]} 33. Rxf4+ {[%clk 0:01:05]}  Kg5 {[%clk 0:00:23]} 34. h4+ {[%clk 0:01:02]}  Kh5 {[%clk 0:00:23]} 35. a4 {[%clk 0:00:57]}  Rd5+ {[%clk 0:00:20]} 36. Ke1 {[%clk 0:00:57]}  Rc5 {[%clk 0:00:14]} 37. Rbc4 {[%clk 0:00:36]}  Rxc4 {[%clk 0:00:02]} 38. Rxc4 {[%clk 0:00:36]}  Rg4 {[%clk 0:00:03]} 39. Rc7 {[%clk 0:00:37]}  Kg6 {[%clk 0:00:03]} 40. Rxa7 {[%clk 0:00:35]}  Kxf6 {[%clk 0:00:03]} 41. h5 {[%clk 0:00:34]}  Kg5 {[%clk 0:00:02]} 42. Ra5+ {[%clk 0:00:31]}  f5 {[%clk 0:00:02]} 43. Kf2 {[%clk 0:00:31]}  Rb4 {[%clk 0:00:01]} 44. Kg3 {[%clk 0:00:30]} 1-0


[Site "https://www.chess.com"]

[Event "Titled Tuesday Blitz January 25 2022"]
[White "Weishaeutel, Moritz"]
[Black "Fawzy, Adham"]
[WhiteFideId "12967300"]
[BlackFideId "10613129"]
[WhiteElo "2002"]
[BlackElo "2510"]
[Result "0-1"]
[Round "04"]
[TimeControl "180+1"]
[Date "2022.01.26"]
[WhiteClock "0:00:01"]
[BlackClock "0:01:23"]

1. e4 {[%clk 0:03:00]}  c5 {[%clk 0:02:58]} 2. b4 {[%clk 0:03:01]}  e5 {[%clk 0:02:58]} 3. Nf3 {[%clk 0:03:01]}  Nc6 {[%clk 0:02:57]} 4. b5 {[%clk 0:03:01]}  Nd4 {[%clk 0:02:58]} 5. c3 {[%clk 0:03:02]}  Nxf3+ {[%clk 0:02:58]} 6. Qxf3 {[%clk 0:03:03]}  Nf6 {[%clk 0:02:58]} 7. Bc4 {[%clk 0:03:02]}  d6 {[%clk 0:02:59]} 8. d3 {[%clk 0:02:59]}  Be6 {[%clk 0:02:59]} 9. O-O {[%clk 0:02:59]}  Be7 {[%clk 0:03:00]} 10. Bg5 {[%clk 0:02:57]}  O-O {[%clk 0:02:59]} 11. Nd2 {[%clk 0:02:40]}  Qd7 {[%clk 0:02:58]} 12. Bxf6 {[%clk 0:02:30]}  Bxf6 {[%clk 0:02:58]} 13. Rfe1 {[%clk 0:02:30]}  Bg5 {[%clk 0:02:57]} 14. Nf1 {[%clk 0:02:30]}  a6 {[%clk 0:02:56]} 15. bxa6 {[%clk 0:02:22]}  b5 {[%clk 0:02:57]} 16. Bd5 {[%clk 0:02:06]}  Rxa6 {[%clk 0:02:56]} 17. Ne3 {[%clk 0:01:52]}  Bxe3 {[%clk 0:02:51]} 18. Qxe3 {[%clk 0:01:52]}  Bxd5 {[%clk 0:02:46]} 19. exd5 {[%clk 0:01:53]}  Rfa8 {[%clk 0:02:45]} 20. d4 {[%clk 0:01:49]}  exd4 {[%clk 0:02:46]} 21. cxd4 {[%clk 0:01:50]}  c4 {[%clk 0:02:46]} 22. h3 {[%clk 0:01:13]}  h6 {[%clk 0:02:44]} 23. a3 {[%clk 0:01:03]}  b4 {[%clk 0:02:41]} 24. Qe2 {[%clk 0:00:52]}  Qb5 {[%clk 0:02:28]} 25. Rec1 {[%clk 0:00:42]}  Qxd5 {[%clk 0:02:11]} 26. Rxc4 {[%clk 0:00:36]}  bxa3 {[%clk 0:02:02]} 27. Rc8+ {[%clk 0:00:33]}  Rxc8 {[%clk 0:02:02]} 28. Qxa6 {[%clk 0:00:33]}  Ra8 {[%clk 0:02:03]} 29. Qb6 {[%clk 0:00:30]}  a2 {[%clk 0:01:57]} 30. Kh2 {[%clk 0:00:18]}  Qc4 {[%clk 0:01:49]} 31. Qb7 {[%clk 0:00:13]}  Qa6 {[%clk 0:01:39]} 32. Qd5 {[%clk 0:00:11]}  Qa3 {[%clk 0:01:39]} 33. Qb5 {[%clk 0:00:03]}  g6 {[%clk 0:01:38]} 34. Qd5 {[%clk 0:00:03]}  Ra7 {[%clk 0:01:38]} 35. Qc6 {[%clk 0:00:02]}  Qb2 {[%clk 0:01:35]} 36. Qc8+ {[%clk 0:00:01]}  Kg7 {[%clk 0:01:30]} 37. Re1 {[%clk 0:00:02]}  Qxd4 {[%clk 0:01:22]} 38. Re8 {[%clk 0:00:02]}  Qe5+ {[%clk 0:01:22]} 39. Rxe5 {[%clk 0:00:02]}  dxe5 {[%clk 0:01:23]} 40. Qc3 {[%clk 0:00:01]}  a1=Q {[%clk 0:01:23]} 41. Qc5 {[%clk 0:00:02]}  Qd4 {[%clk 0:01:23]} 42. Qc8 {[%clk 0:00:01]}  Qf4+ {[%clk 0:01:23]} 0-1


[Site "https://www.chess.com"]

[Event "Titled Tuesday Blitz January 25 2022"]
[White "Willow, Jonah B"]
[Black "Sapunov, Evgeny"]
[WhiteFideId "438804"]
[BlackFideId "4126661"]
[WhiteElo "2872"]
[BlackElo "2737"]
[Result "1-0"]
[Round "04"]
[TimeControl "180+1"]
[Date "2022.01.26"]
[WhiteClock "0:02:07"]
[BlackClock "0:01:16"]

1. e4 {[%clk 0:03:00]}  c5 {[%clk 0:02:57]} 2. Nf3 {[%clk 0:03:01]}  d6 {[%clk 0:02:58]} 3. Nc3 {[%clk 0:03:01]}  Nc6 {[%clk 0:02:57]} 4. d4 {[%clk 0:03:01]}  cxd4 {[%clk 0:02:58]} 5. Nxd4 {[%clk 0:03:02]}  Nf6 {[%clk 0:02:58]} 6. g3 {[%clk 0:03:02]}  e6 {[%clk 0:02:58]} 7. Bg2 {[%clk 0:02:59]}  Qc7 {[%clk 0:02:59]} 8. O-O {[%clk 0:02:56]}  Be7 {[%clk 0:02:59]} 9. Nb3 {[%clk 0:02:57]}  O-O {[%clk 0:02:59]} 10. Be3 {[%clk 0:02:54]}  a6 {[%clk 0:02:59]} 11. f4 {[%clk 0:02:54]}  b5 {[%clk 0:02:58]} 12. a3 {[%clk 0:02:54]}  Rb8 {[%clk 0:02:58]} 13. g4 {[%clk 0:02:53]}  Bb7 {[%clk 0:02:51]} 14. g5 {[%clk 0:02:52]}  Nd7 {[%clk 0:02:52]} 15. Qh5 {[%clk 0:02:51]}  Rfe8 {[%clk 0:02:52]} 16. Rf3 {[%clk 0:02:48]}  g6 {[%clk 0:02:52]} 17. Qh6 {[%clk 0:02:42]}  Bf8 {[%clk 0:02:52]} 18. Qh4 {[%clk 0:02:43]}  Bg7 {[%clk 0:02:50]} 19. Rh3 {[%clk 0:02:43]}  Nf8 {[%clk 0:02:51]} 20. f5 {[%clk 0:02:36]}  Ne5 {[%clk 0:02:32]} 21. f6 {[%clk 0:02:32]}  Bh8 {[%clk 0:02:32]} 22. Rf1 {[%clk 0:02:28]}  Ba8 {[%clk 0:02:28]} 23. Nd2 {[%clk 0:02:26]}  a5 {[%clk 0:02:28]} 24. Nf3 {[%clk 0:02:25]}  b4 {[%clk 0:02:27]} 25. axb4 {[%clk 0:02:23]}  axb4 {[%clk 0:02:28]} 26. Nxe5 {[%clk 0:02:23]}  dxe5 {[%clk 0:02:28]} 27. Nd1 {[%clk 0:02:18]}  Qxc2 {[%clk 0:02:28]} 28. Nf2 {[%clk 0:02:18]}  Rb7 {[%clk 0:01:58]} 29. Bf3 {[%clk 0:02:08]}  Qb3 {[%clk 0:01:19]} 30. Ng4 {[%clk 0:02:06]}  h5 {[%clk 0:01:17]} 31. Nh6+ {[%clk 0:02:06]}  Kh7 {[%clk 0:01:16]} 32. Bxh5 {[%clk 0:02:07]} 1-0


[Site "https://www.chess.com"]

[Event "Titled Tuesday Blitz January 25 2022"]
[White "Ambartsumova, Karina"]
[Black "Weetik, Vjacheslav"]
[WhiteFideId "4166299"]
[BlackFideId "4153472"]
[WhiteElo "2262"]
[BlackElo "2469"]
[Result "0-1"]
[Round "05"]
[TimeControl "180+1"]
[Date "2022.01.26"]
[WhiteClock "0:00:02"]
[BlackClock "0:00:03"]

1. d4 {[%clk 0:03:00]}  Nf6 {[%clk 0:02:52]} 2. Nf3 {[%clk 0:02:57]}  e6 {[%clk 0:02:50]} 3. c4 {[%clk 0:02:52]}  b6 {[%clk 0:02:50]} 4. g3 {[%clk 0:02:51]}  Bb7 {[%clk 0:02:50]} 5. Bg2 {[%clk 0:02:51]}  Bb4+ {[%clk 0:02:50]} 6. Bd2 {[%clk 0:02:43]}  Be7 {[%clk 0:02:50]} 7. Nc3 {[%clk 0:02:40]}  c6 {[%clk 0:02:49]} 8. Qc2 {[%clk 0:02:32]}  d5 {[%clk 0:02:46]} 9. b3 {[%clk 0:02:23]}  O-O {[%clk 0:02:37]} 10. Bf4 {[%clk 0:02:15]}  Na6 {[%clk 0:02:32]} 11. Ne5 {[%clk 0:02:06]}  Rc8 {[%clk 0:02:04]} 12. Rd1 {[%clk 0:02:02]}  Nd7 {[%clk 0:01:57]} 13. O-O {[%clk 0:01:48]}  Nxe5 {[%clk 0:01:51]} 14. Bxe5 {[%clk 0:01:31]}  Nb4 {[%clk 0:01:35]} 15. Qb2 {[%clk 0:01:25]}  a5 {[%clk 0:01:34]} 16. Rfe1 {[%clk 0:01:14]}  Bf6 {[%clk 0:01:19]} 17. Bxf6 {[%clk 0:00:50]}  Qxf6 {[%clk 0:01:19]} 18. e4 {[%clk 0:00:50]}  Rfd8 {[%clk 0:00:48]} 19. e5 {[%clk 0:00:42]}  Qe7 {[%clk 0:00:45]} 20. Na4 {[%clk 0:00:40]}  Qc7 {[%clk 0:00:34]} 21. c5 {[%clk 0:00:40]}  b5 {[%clk 0:00:33]} 22. Nc3 {[%clk 0:00:35]}  Na6 {[%clk 0:00:30]} 23. Bf1 {[%clk 0:00:31]}  Qe7 {[%clk 0:00:27]} 24. Qd2 {[%clk 0:00:29]}  Nc7 {[%clk 0:00:22]} 25. Bd3 {[%clk 0:00:25]}  Ba6 {[%clk 0:00:20]} 26. Bb1 {[%clk 0:00:20]}  b4 {[%clk 0:00:20]} 27. Na4 {[%clk 0:00:19]}  Rb8 {[%clk 0:00:21]} 28. Qf4 {[%clk 0:00:17]}  Nb5 {[%clk 0:00:17]} 29. h4 {[%clk 0:00:16]}  h6 {[%clk 0:00:12]} 30. Bd3 {[%clk 0:00:15]}  Nc7 {[%clk 0:00:11]} 31. Bb1 {[%clk 0:00:15]}  Bb5 {[%clk 0:00:10]} 32. Nb2 {[%clk 0:00:12]}  Ne8 {[%clk 0:00:08]} 33. Re3 {[%clk 0:00:09]}  Ra8 {[%clk 0:00:07]} 34. Kg2 {[%clk 0:00:09]}  a4 {[%clk 0:00:07]} 35. bxa4 {[%clk 0:00:08]}  Bxa4 {[%clk 0:00:08]} 36. Rg1 {[%clk 0:00:07]}  Bb5 {[%clk 0:00:07]} 37. h5 {[%clk 0:00:05]}  Bc4 {[%clk 0:00:04]} 38. Nxc4 {[%clk 0:00:02]}  dxc4 {[%clk 0:00:05]} 39. g4 {[%clk 0:00:02]}  Qd7 {[%clk 0:00:02]} 40. f3 {[%clk 0:00:02]}  Qxd4 {[%clk 0:00:03]} 0-1


[Site "https://www.chess.com"]

[Event "Titled Tuesday Blitz January 25 2022"]
[White "Aradhya, Garg"]
[Black "Hakobyan, Aram"]
[WhiteFideId "25006746"]
[BlackFideId "13306677"]
[WhiteElo "2169"]
[BlackElo "2557"]
[Result "0-1"]
[Round "05"]
[TimeControl "180+1"]
[Date "2022.01.26"]
[WhiteClock "0:00:04"]
[BlackClock "0:00:10"]

1. d4 {[%clk 0:03:00]}  d5 {[%clk 0:02:59]} 2. c4 {[%clk 0:03:01]}  dxc4 {[%clk 0:03:00]} 3. e3 {[%clk 0:03:00]}  Nf6 {[%clk 0:02:59]} 4. Bxc4 {[%clk 0:03:00]}  e6 {[%clk 0:02:55]} 5. Nc3 {[%clk 0:02:59]}  a6 {[%clk 0:02:48]} 6. a4 {[%clk 0:02:56]}  c5 {[%clk 0:02:47]} 7. d5 {[%clk 0:02:55]}  exd5 {[%clk 0:02:44]} 8. Nxd5 {[%clk 0:02:56]}  Be6 {[%clk 0:02:42]} 9. Nxf6+ {[%clk 0:02:51]}  Qxf6 {[%clk 0:02:42]} 10. Qb3 {[%clk 0:02:50]}  Bxc4 {[%clk 0:02:36]} 11. Qxc4 {[%clk 0:02:51]}  Qg6 {[%clk 0:02:33]} 12. Nf3 {[%clk 0:02:43]}  Nc6 {[%clk 0:02:25]} 13. O-O {[%clk 0:02:25]}  Bd6 {[%clk 0:02:26]} 14. Bd2 {[%clk 0:02:11]}  O-O {[%clk 0:02:24]} 15. Bc3 {[%clk 0:02:11]}  Rfe8 {[%clk 0:02:23]} 16. Rfd1 {[%clk 0:02:10]}  Rad8 {[%clk 0:02:19]} 17. a5 {[%clk 0:02:04]}  h6 {[%clk 0:02:07]} 18. Rd2 {[%clk 0:01:54]}  Qh5 {[%clk 0:01:31]} 19. Rad1 {[%clk 0:01:41]}  Bc7 {[%clk 0:01:31]} 20. Rd5 {[%clk 0:01:34]}  Rxd5 {[%clk 0:01:27]} 21. Rxd5 {[%clk 0:01:34]}  Qg6 {[%clk 0:01:27]} 22. Rxc5 {[%clk 0:01:08]}  Qb1+ {[%clk 0:01:26]} 23. Qf1 {[%clk 0:01:08]}  Qa2 {[%clk 0:01:20]} 24. Qc4 {[%clk 0:01:06]}  Qa1+ {[%clk 0:00:49]} 25. Qf1 {[%clk 0:01:05]}  Qa4 {[%clk 0:00:49]} 26. Nd4 {[%clk 0:00:59]}  Rd8 {[%clk 0:00:47]} 27. Nxc6 {[%clk 0:00:39]}  Rd1 {[%clk 0:00:42]} 28. Ne7+ {[%clk 0:00:39]}  Kf8 {[%clk 0:00:42]} 29. Be1 {[%clk 0:00:39]}  Bd6 {[%clk 0:00:40]} 30. Rd5 {[%clk 0:00:28]}  Kxe7 {[%clk 0:00:38]} 31. Rxd1 {[%clk 0:00:27]}  Qxd1 {[%clk 0:00:39]} 32. g3 {[%clk 0:00:27]}  Ke6 {[%clk 0:00:13]} 33. Qc4+ {[%clk 0:00:26]}  Qd5 {[%clk 0:00:13]} 34. Qg4+ {[%clk 0:00:18]}  Ke7 {[%clk 0:00:11]} 35. Qd4 {[%clk 0:00:14]}  Qxd4 {[%clk 0:00:08]} 36. exd4 {[%clk 0:00:15]}  Ke6 {[%clk 0:00:09]} 37. b3 {[%clk 0:00:13]}  Kd5 {[%clk 0:00:10]} 38. Bc3 {[%clk 0:00:13]}  Ke4 {[%clk 0:00:11]} 39. Kg2 {[%clk 0:00:11]}  Kd3 {[%clk 0:00:11]} 40. Be1 {[%clk 0:00:10]}  Kxd4 {[%clk 0:00:09]} 41. Kf3 {[%clk 0:00:10]}  Kd3 {[%clk 0:00:09]} 42. Kg4 {[%clk 0:00:09]}  g6 {[%clk 0:00:10]} 43. h4 {[%clk 0:00:08]}  f5+ {[%clk 0:00:11]} 44. Kf3 {[%clk 0:00:09]}  Bc7 {[%clk 0:00:09]} 45. Bb4 {[%clk 0:00:07]}  Kc2 {[%clk 0:00:09]} 46. Bf8 {[%clk 0:00:07]}  h5 {[%clk 0:00:10]} 47. b4 {[%clk 0:00:07]}  Kd3 {[%clk 0:00:10]} 48. Be7 {[%clk 0:00:06]}  Be5 {[%clk 0:00:10]} 49. Bc5 {[%clk 0:00:06]}  Kc4 {[%clk 0:00:11]} 50. Be7 {[%clk 0:00:05]}  Bd4 {[%clk 0:00:06]} 51. Kf4 {[%clk 0:00:04]}  Bxf2 {[%clk 0:00:06]} 52. Kg5 {[%clk 0:00:04]}  Bxg3 {[%clk 0:00:07]} 53. Kxg6 {[%clk 0:00:05]}  f4 {[%clk 0:00:07]} 54. Bd6 {[%clk 0:00:04]}  Bxh4 {[%clk 0:00:07]} 55. Bxf4 {[%clk 0:00:04]}  Be7 {[%clk 0:00:07]} 56. Kxh5 {[%clk 0:00:02]}  Bxb4 {[%clk 0:00:08]} 57. Bc7 {[%clk 0:00:02]}  Kb5 {[%clk 0:00:09]} 58. Kg4 {[%clk 0:00:03]}  Bxa5 {[%clk 0:00:10]} 59. Be5 {[%clk 0:00:03]}  Kc4 {[%clk 0:00:10]} 60. Kf3 {[%clk 0:00:04]}  Bc3 {[%clk 0:00:10]} 61. Ke2 {[%clk 0:00:04]}  Bxe5 {[%clk 0:00:10]} 0-1


[Site "https://www.chess.com"]

[Event "Titled Tuesday Blitz January 25 2022"]
[White "Artemenko, Oleg"]
[Black "Moskalenko, Alexander"]
[WhiteFideId "14201798"]
[BlackFideId "4155351"]
[WhiteElo "2287"]
[BlackElo "2515"]
[Result "1-0"]
[Round "05"]
[TimeControl "180+1"]
[Date "2022.01.26"]
[WhiteClock "0:02:15"]
[BlackClock "0:01:58"]

1. d4 {[%clk 0:03:00]}  Nf6 {[%clk 0:03:00]} 2. Nc3 {[%clk 0:03:00]}  d5 {[%clk 0:02:59]} 3. Bf4 {[%clk 0:03:00]}  e6 {[%clk 0:02:51]} 4. Nb5 {[%clk 0:02:58]}  Na6 {[%clk 0:02:51]} 5. e3 {[%clk 0:02:58]}  c6 {[%clk 0:02:51]} 6. Nc3 {[%clk 0:02:58]}  b6 {[%clk 0:02:46]} 7. Nf3 {[%clk 0:02:57]}  Bb7 {[%clk 0:02:46]} 8. Ne5 {[%clk 0:02:57]}  Be7 {[%clk 0:02:36]} 9. Nxc6 {[%clk 0:02:50]}  Bxc6 {[%clk 0:02:35]} 10. Bxa6 {[%clk 0:02:50]}  b5 {[%clk 0:02:32]} 11. Bxb5 {[%clk 0:02:40]}  Bxb5 {[%clk 0:02:31]} 12. Nxb5 {[%clk 0:02:41]}  Qa5+ {[%clk 0:02:31]} 13. Nc3 {[%clk 0:02:40]}  Ne4 {[%clk 0:02:25]} 14. O-O {[%clk 0:02:39]}  Nxc3 {[%clk 0:02:24]} 15. bxc3 {[%clk 0:02:39]}  Qxc3 {[%clk 0:02:25]} 16. Qd3 {[%clk 0:02:35]}  Rc8 {[%clk 0:02:25]} 17. Rab1 {[%clk 0:02:31]}  Qxc2 {[%clk 0:02:05]} 18. Qb5+ {[%clk 0:02:19]}  Qc6 {[%clk 0:02:03]} 19. Rfc1 {[%clk 0:02:18]}  Qxb5 {[%clk 0:01:57]} 20. Rxc8+ {[%clk 0:02:15]}  Kd7 {[%clk 0:01:58]} 21. Rc7+ {[%clk 0:02:15]} 1-0


[Site "https://www.chess.com"]

[Event "Titled Tuesday Blitz January 25 2022"]
[White "Atakishiyev, Elmar"]
[Black "Triapishko, Alexandr"]
[WhiteFideId "13410547"]
[BlackFideId "14122286"]
[WhiteElo "2087"]
[BlackElo "2479"]
[Result "1-0"]
[Round "05"]
[TimeControl "180+1"]
[Date "2022.01.26"]
[WhiteClock "0:01:03"]
[BlackClock "0:00:02"]

1. d4 {[%clk 0:03:00]}  Nf6 {[%clk 0:02:44]} 2. c4 {[%clk 0:02:24]}  Nc6 {[%clk 0:02:30]} 3. Nf3 {[%clk 0:02:20]}  e6 {[%clk 0:02:10]} 4. g3 {[%clk 0:02:14]}  d5 {[%clk 0:02:05]} 5. Bg2 {[%clk 0:02:13]}  dxc4 {[%clk 0:02:05]} 6. O-O {[%clk 0:02:12]}  Rb8 {[%clk 0:02:04]} 7. e3 {[%clk 0:02:12]}  b5 {[%clk 0:02:04]} 8. Qe2 {[%clk 0:02:12]}  a6 {[%clk 0:02:03]} 9. b3 {[%clk 0:02:13]}  cxb3 {[%clk 0:02:03]} 10. axb3 {[%clk 0:02:14]}  Bb7 {[%clk 0:02:04]} 11. Bb2 {[%clk 0:02:14]}  Be7 {[%clk 0:02:03]} 12. Nbd2 {[%clk 0:02:15]}  O-O {[%clk 0:02:03]} 13. Rfc1 {[%clk 0:02:15]}  Nb4 {[%clk 0:01:57]} 14. Ba3 {[%clk 0:02:13]}  h6 {[%clk 0:01:44]} 15. Bxb4 {[%clk 0:02:11]}  Bxb4 {[%clk 0:01:45]} 16. Ne5 {[%clk 0:02:07]}  Bxg2 {[%clk 0:01:22]} 17. Kxg2 {[%clk 0:02:08]}  Bxd2 {[%clk 0:01:22]} 18. Qxd2 {[%clk 0:02:07]}  c5 {[%clk 0:01:23]} 19. Rxa6 {[%clk 0:02:01]}  Qd5+ {[%clk 0:01:18]} 20. Kg1 {[%clk 0:01:55]}  cxd4 {[%clk 0:01:04]} 21. Nc6 {[%clk 0:01:51]}  Rb7 {[%clk 0:00:49]} 22. Qxd4 {[%clk 0:01:49]}  Qxb3 {[%clk 0:00:44]} 23. Na5 {[%clk 0:01:47]}  Qa3 {[%clk 0:00:07]} 24. Ra1 {[%clk 0:01:47]}  Qe7 {[%clk 0:00:08]} 25. Nxb7 {[%clk 0:01:47]}  Qxb7 {[%clk 0:00:09]} 26. Rb6 {[%clk 0:01:47]}  Qf3 {[%clk 0:00:08]} 27. Rxb5 {[%clk 0:01:34]}  g5 {[%clk 0:00:08]} 28. h3 {[%clk 0:01:29]}  Ne4 {[%clk 0:00:07]} 29. Rb2 {[%clk 0:01:24]}  Rc8 {[%clk 0:00:04]} 30. Qe5 {[%clk 0:01:16]}  Rc5 {[%clk 0:00:02]} 31. Ra8+ {[%clk 0:01:14]}  Kh7 {[%clk 0:00:03]} 32. Qh8+ {[%clk 0:01:07]}  Kg6 {[%clk 0:00:03]} 33. Rg8+ {[%clk 0:01:02]}  Kf5 {[%clk 0:00:02]} 34. g4+ {[%clk 0:01:03]} 1-0


[Site "https://www.chess.com"]

[Event "Titled Tuesday Blitz January 25 2022"]
[White "Belyakov, Bogdan"]
[Black "Pranav, V"]
[WhiteFideId "24104795"]
[BlackFideId "25060783"]
[WhiteElo "2407"]
[BlackElo "2349"]
[Result "1/2-1/2"]
[Round "05"]
[TimeControl "180+1"]
[Date "2022.01.26"]
[WhiteClock "0:00:32"]
[BlackClock "0:00:05"]

1. e4 {[%clk 0:03:00]}  e5 {[%clk 0:02:59]} 2. Nf3 {[%clk 0:02:59]}  Nc6 {[%clk 0:02:58]} 3. Bc4 {[%clk 0:02:59]}  Nf6 {[%clk 0:02:58]} 4. d4 {[%clk 0:02:58]}  exd4 {[%clk 0:02:56]} 5. e5 {[%clk 0:02:59]}  d5 {[%clk 0:02:54]} 6. Bb5 {[%clk 0:02:59]}  Ne4 {[%clk 0:02:54]} 7. Nxd4 {[%clk 0:02:59]}  Bd7 {[%clk 0:02:55]} 8. Bxc6 {[%clk 0:02:59]}  bxc6 {[%clk 0:02:56]} 9. O-O {[%clk 0:03:00]}  Bc5 {[%clk 0:02:56]} 10. Be3 {[%clk 0:03:00]}  Bb6 {[%clk 0:02:55]} 11. Nd2 {[%clk 0:02:59]}  c5 {[%clk 0:02:51]} 12. N4b3 {[%clk 0:02:58]}  Nxd2 {[%clk 0:02:50]} 13. Qxd2 {[%clk 0:02:58]}  d4 {[%clk 0:02:50]} 14. Bg5 {[%clk 0:02:58]}  Qc8 {[%clk 0:02:50]} 15. c3 {[%clk 0:02:56]}  h6 {[%clk 0:02:15]} 16. Bh4 {[%clk 0:02:49]}  Bc6 {[%clk 0:02:02]} 17. cxd4 {[%clk 0:02:47]}  Qg4 {[%clk 0:02:01]} 18. Bg3 {[%clk 0:02:39]}  cxd4 {[%clk 0:01:59]} 19. Rac1 {[%clk 0:02:17]}  Bd5 {[%clk 0:01:52]} 20. f3 {[%clk 0:02:14]}  Qd7 {[%clk 0:01:39]} 21. Nc5 {[%clk 0:02:08]}  Qb5 {[%clk 0:01:35]} 22. Qxd4 {[%clk 0:02:04]}  Bxa2 {[%clk 0:01:32]} 23. b4 {[%clk 0:01:52]}  O-O {[%clk 0:01:31]} 24. Kh1 {[%clk 0:01:51]}  a5 {[%clk 0:01:30]} 25. bxa5 {[%clk 0:01:44]}  Rxa5 {[%clk 0:01:29]} 26. Bf2 {[%clk 0:01:44]}  Be6 {[%clk 0:00:48]} 27. Qf4 {[%clk 0:01:39]}  Bxc5 {[%clk 0:00:45]} 28. Bxc5 {[%clk 0:01:38]}  Rd8 {[%clk 0:00:45]} 29. Rfe1 {[%clk 0:01:20]}  Ra2 {[%clk 0:00:43]} 30. Be3 {[%clk 0:01:17]}  c6 {[%clk 0:00:35]} 31. h3 {[%clk 0:01:16]}  Rd3 {[%clk 0:00:32]} 32. Qg3 {[%clk 0:01:14]}  Kh7 {[%clk 0:00:32]} 33. Qf4 {[%clk 0:01:04]}  Qb2 {[%clk 0:00:30]} 34. Rg1 {[%clk 0:00:59]}  Qb3 {[%clk 0:00:20]} 35. Qe4+ {[%clk 0:00:56]}  Kg8 {[%clk 0:00:18]} 36. Rb1 {[%clk 0:00:43]}  Rxe3 {[%clk 0:00:07]} 37. Rxb3 {[%clk 0:00:43]}  Rxe4 {[%clk 0:00:08]} 38. Rb8+ {[%clk 0:00:43]}  Kh7 {[%clk 0:00:09]} 39. fxe4 {[%clk 0:00:44]}  c5 {[%clk 0:00:09]} 40. Rc1 {[%clk 0:00:40]}  c4 {[%clk 0:00:10]} 41. Rb4 {[%clk 0:00:39]}  Ra5 {[%clk 0:00:09]} 42. Kg1 {[%clk 0:00:34]}  Rxe5 {[%clk 0:00:09]} 43. Rbxc4 {[%clk 0:00:33]}  Bxc4 {[%clk 0:00:09]} 44. Rxc4 {[%clk 0:00:34]}  Ra5 {[%clk 0:00:10]} 45. Kf2 {[%clk 0:00:34]}  Ra2+ {[%clk 0:00:10]} 46. Kf3 {[%clk 0:00:35]}  Kg6 {[%clk 0:00:10]} 47. Rc5 {[%clk 0:00:35]}  h5 {[%clk 0:00:10]} 48. h4 {[%clk 0:00:35]}  Ra3+ {[%clk 0:00:10]} 49. Kf4 {[%clk 0:00:35]}  Kh6 {[%clk 0:00:10]} 50. g3 {[%clk 0:00:35]}  g6 {[%clk 0:00:09]} 51. Rc7 {[%clk 0:00:34]}  Ra1 {[%clk 0:00:07]} 52. Rb7 {[%clk 0:00:33]}  Kg7 {[%clk 0:00:07]} 53. Rb6 {[%clk 0:00:33]}  Rf1+ {[%clk 0:00:07]} 54. Ke3 {[%clk 0:00:33]}  Kf8 {[%clk 0:00:08]} 55. Rb7 {[%clk 0:00:32]}  Ke8 {[%clk 0:00:08]} 56. Ra7 {[%clk 0:00:32]}  Kf8 {[%clk 0:00:08]} 57. Rb7 {[%clk 0:00:32]}  Kg7 {[%clk 0:00:06]} 58. Rb6 {[%clk 0:00:32]}  Ra1 {[%clk 0:00:06]} 59. Rc6 {[%clk 0:00:32]}  Ra3+ {[%clk 0:00:05]} 60. Kf4 {[%clk 0:00:32]}  Ra1 {[%clk 0:00:05]} 1/2-1/2


[Site "https://www.chess.com"]